{"text_format":"3","workbook":"xlsx","n_sheets":2,"sheets":["開始","サービス請求書"],"not_rendered":{"images":1,"defined_names":1},"read":"whole","date_system":"1900"}

{"sheet":"開始","index":0,"n_rows":8,"n_cols":2,"rows_kept":8}
[null,"このテンプレートについて"]
[null,"このテンプレートを使用してサービス請求書を作成します。"]
[null,"請求書番号、日付、会社名、住所、標語、請求先の詳細を入力します。"]
[null,"テーブルに情報を入力します。"]
[null,"合計は自動的に計算されます。"]
[null,"メモ: "]
[null,"サービス請求書ワークシートのA列に追加の説明があります。このテキストは意図的に表示されません。テキストを削除するには、列 A を選択し、[削除] を選択します。テキストを再表示するには、列 A を選択し、フォントの色を変更します。"]
[null,"テーブルの詳細については、テーブル内で Shift キーを押し、F10 キーを押して、[テーブル] オプションを選択し、[代替テキスト] を選択します。"]

{"sheet":"サービス請求書","index":1,"n_rows":43,"n_cols":5,"rows_kept":43,"merged":[[0,1,0,2],[0,3,0,4],[1,1,1,4],[2,1,2,3],[3,1,3,3],[4,1,4,2],[5,1,5,2],[6,1,6,2],[7,1,7,2],[41,1,41,2],[41,3,41,4],[42,1,42,4]]}
["このワークシートにサービス請求書を作成します。右側のセルに会社のロゴ、セルD1にこのワークシートのタイトルを入力します。このワークシートの使用方法に関する役に立つ指示がこの列のセルに表示されます。次の指示はセル A3 に表示されます。","このセルにはロゴのプレースホルダーが表示されます。",null,"請求書"]
[]
["右のセルに会社名を入力します。","会社名"]
["右側のセルに会社の標語を入力します。","会社のスローガン"]
["右側のセルに会社の住所を入力し、セルE5に請求書番号を入力します。","番地",null,"請求書番号","番号"]
["右側のセルに市、州、および郵便番号を入力し、セルE6に日付を入力します。","郵便番号、都道府県、市区町村",null,"日付 ",{"$f":"TODAY()","v":"2019-04-19"}]
["右側のセルに電話番号とファックス番号を入力し、セルE7にIDを入力します。","電話とファックス",null,"顧客 ID ","ID"]
["右側のセルにEメールアドレスを入力してください。","メール"]
["法ラベルはセルの右側にあります。セルC9からC13に、名前、会社名、住所、電話番号などの請求先詳細を入力します。次の説明はセル A14 に表示されます。","法","名前"]
[null,null,"会社名"]
[null,null,"番地"]
[null,null,"郵便番号、都道府県、市区町村"]
[null,null,"電話番号"]
["右側のセルから始まる売上明細のテーブルに情報を入力します。次の指示はセル A17 に表示されます。","販売員","作業","支払条件","期日"]
[{"$nulls":3},"請求書受領時"]
[]
["右側のセルから始まる請求書テーブルに情報を入力します。小計、および集計は自動計算されます。次の指示はセル A42 に表示されます。","数量","説明","単価","行の合計"]
[{"$nulls":4},{"$f":"IF(SUM(B18)>0,SUM(B18*サービス請求書!$D18),\"\")","v":""}]
[{"$nulls":4},{"$f":"IF(SUM(B19)>0,SUM(B19*サービス請求書!$D19),\"\")","v":""}]
[{"$nulls":4},{"$f":"IF(SUM(B20)>0,SUM(B20*サービス請求書!$D20),\"\")","v":""}]
[{"$nulls":4},{"$f":"IF(SUM(B21)>0,SUM(B21*サービス請求書!$D21),\"\")","v":""}]
[{"$nulls":4},{"$f":"IF(SUM(B22)>0,SUM(B22*サービス請求書!$D22),\"\")","v":""}]
[{"$nulls":4},{"$f":"IF(SUM(B23)>0,SUM(B23*サービス請求書!$D23),\"\")","v":""}]
[{"$nulls":4},{"$f":"IF(SUM(B24)>0,SUM(B24*サービス請求書!$D24),\"\")","v":""}]
[{"$nulls":4},{"$f":"IF(SUM(B25)>0,SUM(B25*サービス請求書!$D25),\"\")","v":""}]
[{"$nulls":4},{"$f":"IF(SUM(B26)>0,SUM(B26*サービス請求書!$D26),\"\")","v":""}]
[{"$nulls":4},{"$f":"IF(SUM(B27)>0,SUM(B27*サービス請求書!$D27),\"\")","v":""}]
[{"$nulls":4},{"$f":"IF(SUM(B28)>0,SUM(B28*サービス請求書!$D28),\"\")","v":""}]
[{"$nulls":4},{"$f":"IF(SUM(B29)>0,SUM(B29*サービス請求書!$D29),\"\")","v":""}]
[{"$nulls":4},{"$f":"IF(SUM(B30)>0,SUM(B30*サービス請求書!$D30),\"\")","v":""}]
[{"$nulls":4},{"$f":"IF(SUM(B31)>0,SUM(B31*サービス請求書!$D31),\"\")","v":""}]
[{"$nulls":4},{"$f":"IF(SUM(B32)>0,SUM(B32*サービス請求書!$D32),\"\")","v":""}]
[{"$nulls":4},{"$f":"IF(SUM(B33)>0,SUM(B33*サービス請求書!$D33),\"\")","v":""}]
[{"$nulls":4},{"$f":"IF(SUM(B34)>0,SUM(B34*サービス請求書!$D34),\"\")","v":""}]
[{"$nulls":4},{"$f":"IF(SUM(B35)>0,SUM(B35*サービス請求書!$D35),\"\")","v":""}]
[{"$nulls":4},{"$f":"IF(SUM(B36)>0,SUM(B36*サービス請求書!$D36),\"\")","v":""}]
[{"$nulls":4},{"$f":"IF(SUM(B37)>0,SUM(B37*サービス請求書!$D37),\"\")","v":""}]
[{"$nulls":3},"小計",{"$f":"IF(SUM(E18:E37)>0,SUM(E18:E37),\"\")","v":""}]
[{"$nulls":3},"消費税"]
[{"$nulls":3},"集計",{"$f":"IF(SUM(E38)>0,SUM((E38*E39)+E38),\"\")","v":""}]
[]
["会社名はセルD42で自動更新されます。","すべての支払先を次に指定してください",null,{"$f":"B3","v":"会社名"}]
["お礼のメッセージは、右側のセルにあります。","ご利用ありがとうございます。"]